fUSD/lending_fUSD_20260601
["ID","MTS","AMOUNT","RATE_DAILY","PERIOD"]
[423593855,1780253448000,-232.41,0.00029107,2]
[423593858,1780253448000,-1402.5,0.00029134,30]
[423593859,1780253448000,-1787.88,0.00029134,30]
[423593864,1780253448000,-227.71,0.00029138,7]
[423593874,1780253448000,-227.71,0.00029201,2]
[423593863,1780253448000,-232.41,0.00029138,7]
[423593865,1780253448000,-2319.0,0.0002917,3]
[423593869,1780253448000,-232.41,0.0002917,30]
[423593867,1780253448000,-2319.0,0.0002917,3]
[423593866,1780253448000,-2319.0,0.0002917,3]
[423593868,1780253448000,-1590.0,0.0002917,3]
[423593872,1780253448000,-1391.51,0.000292,7]
[423593871,1780253448000,-500.0,0.0002918,17]
[423593870,1780253448000,-227.71,0.0002917,30]
[423593873,1780253448000,-232.41,0.00029201,2]
[423593877,1780253448000,-655.0,0.00029273,4]
[423593875,1780253448000,-232.45,0.00029232,7]
[423593880,1780253448000,-1787.88,0.00029301,7]
[423593878,1780253448000,-1081.82,0.00029301,7]
[423593822,1780253448000,-232.41,0.00029044,7]
[423593862,1780253448000,-1630.31,0.00029135,30]
[423593851,1780253448000,-800.0,0.000291,11]
[423593876,1780253448000,-227.88,0.00029232,7]
[423593852,1780253448000,-800.0,0.000291,11]
[423593820,1780253448000,-227.71,0.00029012,2]
[423593850,1780253448000,-800.0,0.000291,11]
[423593819,1780253448000,-10000.01,0.00029,2]
[423593821,1780253448000,-232.41,0.00029013,2]
[423593827,1780253448000,-544.76,0.00029078,30]
[423593828,1780253448000,-544.76,0.00029078,30]
[423593829,1780253448000,-544.76,0.00029078,30]
[423593830,1780253448000,-544.76,0.00029078,30]
[423593831,1780253448000,-544.96368182,0.00029078,30]
[423593832,1780253448000,-350.0,0.00029078,2]
[423593834,1780253448000,-10000.01,0.00029078,2]
[423593836,1780253448000,-1953.51610916,0.00029078,2]
[423593833,1780253448000,-10000.01,0.00029078,2]
[423593823,1780253448000,-227.71,0.00029044,7]
[423593838,1780253448000,-1082.36,0.00029099,2]
[423593835,1780253448000,-10000.01,0.00029078,2]
[423593844,1780253448000,-800.0,0.000291,11]
[423593845,1780253448000,-800.0,0.000291,11]
[423593849,1780253448000,-800.0,0.000291,11]
[423593846,1780253448000,-321.65955332,0.000291,11]
[423593847,1780253448000,-800.0,0.000291,11]
[423593842,1780253448000,-7840.88,0.000291,2]
[423593837,1780253448000,-311.6,0.00029078,30]
[423593843,1780253448000,-800.0,0.000291,11]
[423593839,1780253448000,-3920.43,0.000291,2]
[423593848,1780253448000,-800.0,0.000291,11]
[423593840,1780253448000,-3920.43,0.000291,2]
[423593841,1780253448000,-7840.88,0.000291,2]
[423593910,1780253449000,-220.38734155,0.00029659,2]
[423593905,1780253449000,-1292.65,0.00029635,30]
[423593907,1780253449000,-180.07873568,0.00029659,2]
[423593922,1780253449000,-220.0,0.00029727,30]
[423593911,1780253449000,-192.0,0.00029677,30]
[423593914,1780253449000,-1000.0,0.000297,7]
[423593917,1780253449000,-504.0,0.00029727,30]
[423593913,1780253449000,-563.62,0.000297,7]
[423593918,1780253449000,-222.0,0.00029727,30]
[423593912,1780253449000,-1841.0,0.00029677,30]
[423593920,1780253449000,-800.0,0.00029727,30]
[423593916,1780253449000,-423.0,0.00029727,30]
[423593915,1780253449000,-166.11,0.00029712,2]
[423593919,1780253449000,-923.0,0.00029727,30]
[423593924,1780253449000,-444.0,0.00029727,30]
[423593923,1780253449000,-1199.0,0.00029727,30]
[423593934,1780253449000,-513.55092324,0.00029755,2]
[423593925,1780253449000,-287.0,0.00029727,30]
[423593928,1780253449000,-324.8109454,0.00029755,2]
[423593908,1780253449000,-220.00926133,0.00029659,2]
[423593926,1780253449000,-839.0,0.00029727,30]
[423593921,1780253449000,-157.0,0.00029727,30]
[423593904,1780253449000,-1402.5,0.00029635,30]
[423593897,1780253449000,-222.00769048,0.000295,2]
[423593903,1780253449000,-152.25193405,0.0002959,2]
[423593930,1780253449000,-324.96557759,0.00029755,2]
[423593886,1780253449000,-1081.82,0.00029468,2]
[423593887,1780253449000,-1402.5,0.00029468,2]
[423593882,1780253449000,-1292.65,0.00029301,7]
[423593884,1780253449000,-200.0,0.00029314,2]
[423593885,1780253449000,-5578.7,0.000294,14]
[423593881,1780253449000,-1031.52,0.00029301,7]
[423593883,1780253449000,-1630.31,0.00029302,7]
[423593889,1780253449000,-1031.52,0.00029468,2]
[423593898,1780253449000,-234.305279,0.000295,2]
[423593902,1780253449000,-150.0,0.00029534,2]
[423593888,1780253449000,-1787.88,0.00029468,2]
[423593890,1780253449000,-1292.65,0.00029468,2]
[423593895,1780253449000,-486.43,0.000295,7]
[423593892,1780253449000,-163.0,0.0002949,3]
[423593894,1780253449000,-974.58,0.000295,30]
[423593896,1780253449000,-222.00769048,0.000295,2]
[423593893,1780253449000,-1590.0,0.0002949,3]
[423593899,1780253449000,-234.30527898,0.000295,2]
[423593900,1780253449000,-234.30527898,0.000295,2]
[423593909,1780253449000,-226.52289575,0.00029659,2]
[423593906,1780253449000,-171.75727989,0.00029659,2]
[423593891,1780253449000,-1630.31,0.00029469,2]
[423593933,1780253449000,-534.40031765,0.00029755,2]
[423593901,1780253449000,-337.07087933,0.00029525,2]
[423593931,1780253449000,-438.90013481,0.00029755,2]
[423593961,1780253449000,-160.90163915,0.00029755,2]
[423593960,1780253449000,-226.17192559,0.00029755,2]
[423593952,1780253449000,-327.96025697,0.00029755,2]
[423593963,1780253449000,-203.20579011,0.00029755,2]
[423593953,1780253449000,-154.0846633,0.00029755,2]
[423593965,1780253449000,-306.95848609,0.00029755,2]
[423593975,1780253449000,-655.0,0.00029807,4]
[423593964,1780253449000,-201.03299932,0.00029755,2]
[423593977,1780253449000,-2318.0,0.0002981,3]
[423593966,1780253449000,-196.6187231,0.00029755,2]
[423593962,1780253449000,-170.18223489,0.00029755,2]
[423593976,1780253449000,-2319.0,0.0002981,3]
[423593968,1780253449000,-309.0553515,0.00029755,2]
[423593973,1780253449000,-313.56246455,0.00029755,2]
[423593974,1780253449000,-1540.33348122,0.00029771,2]
[423593969,1780253449000,-432.86263508,0.00029755,2]
[423593971,1780253449000,-334.58548789,0.00029755,2]
[423593970,1780253449000,-182.89196926,0.00029755,2]
[423593978,1780253449000,-1590.0,0.0002981,3]
[423593979,1780253449000,-1145.96419696,0.00029819,2]
[423593980,1780253449000,-1082.36,0.00029828,2]
[423593981,1780253449000,-1082.36,0.00029828,2]
[423593967,1780253449000,-366.82971471,0.00029755,2]
[423593959,1780253449000,-322.97235581,0.00029755,2]
[423593972,1780253449000,-439.24248306,0.00029755,2]
[423593955,1780253449000,-161.91558304,0.00029755,2]
[423593957,1780253449000,-221.00231335,0.00029755,2]
[423593932,1780253449000,-494.59619501,0.00029755,2]
[423593929,1780253449000,-326.23866676,0.00029755,2]
[423593936,1780253449000,-315.27052205,0.00029755,2]
[423593935,1780253449000,-319.15286215,0.00029755,2]
[423593937,1780253449000,-400.19573463,0.00029755,2]
[423593938,1780253449000,-227.62883869,0.00029755,2]
[423593941,1780253449000,-305.87947292,0.00029755,2]
[423593940,1780253449000,-312.07624068,0.00029755,2]
[423593942,1780253449000,-316.15549343,0.00029755,2]
[423593943,1780253449000,-331.0603155,0.00029755,2]
[423593927,1780253449000,-366.31019399,0.00029729,2]
[423593944,1780253449000,-191.31516095,0.00029755,2]
[423593945,1780253449000,-176.76570018,0.00029755,2]
[423593939,1780253449000,-388.14077998,0.00029755,2]
[423593946,1780253449000,-432.02189072,0.00029755,2]
[423593948,1780253449000,-354.1643919,0.00029755,2]
[423593947,1780253449000,-204.86644652,0.00029755,2]
[423593950,1780253449000,-319.63739094,0.00029755,2]
[423593949,1780253449000,-152.26722604,0.00029755,2]
[423593956,1780253449000,-339.94495646,0.00029755,2]
[423593954,1780253449000,-159.29446831,0.00029755,2]
[423593951,1780253449000,-350.15943463,0.00029755,2]
[423593958,1780253449000,-320.30707855,0.00029755,2]
[423593983,1780253450000,-1082.36,0.00029828,2]
[423593985,1780253450000,-474793.24084185,0.00029829,2]
[423593982,1780253450000,-1082.36,0.00029828,2]
[423593984,1780253450000,-1082.53083677,0.00029828,2]
[423593987,1780253529000,377.71929782,9.275e-05,2]
[423593986,1780253529000,410.32261112,9.275e-05,2]
[423593988,1780253545000,1000.0,0.00025641,120]
[423593989,1780253586000,237.422914,0.00028439,120]
[423593990,1780253592000,500.0,0.0003013,120]
[423593991,1780253621000,600.92448344,9.99e-05,2]
[423593992,1780253637000,2331.43708714,9.99e-05,2]
[423593994,1780253665000,2125.78543893,9.99e-05,2]
[423593995,1780253750000,6813.596,9.975e-05,2]
[423593996,1780253854000,396.81471352,9.975e-05,2]
[423593997,1780253906000,1626.5522,9.975e-05,2]
[423593998,1780253926000,500.0,0.0003013,120]
[423593999,1780254066000,1417.19029262,9.984e-05,2]
[423594000,1780254112000,165.87207564,9.984e-05,2]
[423594001,1780254136000,172.85,0.00028389,120]
[423594002,1780254176000,25071.5417,9.975e-05,2]
[423594004,1780254209000,175.065,9.873e-05,2]
[423594003,1780254209000,1604.869,9.873e-05,2]
[423594005,1780254259000,500.0,0.0003013,120]
[423594006,1780254264000,264.54314234,9.975e-05,2]
[423594007,1780254275000,2307.0,0.0003013,120]
[423594008,1780254281000,173.49472329,9.975e-05,2]
[423594013,1780254391000,-19040.0,0.00010055,2]
[423594009,1780254391000,-166.61908899,0.00010024,2]
[423594010,1780254391000,-944.7935284,0.00010045,2]
[423594011,1780254391000,-165.87207564,0.00010045,2]
[423594012,1780254391000,-1200.0,0.00010054,2]
[423594014,1780254391000,-150.0,0.00010064,2]
[423594015,1780254391000,-381.98806565,0.00010065,2]
[423594018,1780254391000,-500.0,0.00010073,2]
[423594016,1780254391000,-381.98806565,0.00010065,2]
[423594019,1780254391000,-298.1314507,0.00010073,2]
[423594021,1780254391000,-15541.68909071,0.00010074,2]
[423594022,1780254391000,-49134.19660828,0.00010075,2]
[423594020,1780254391000,-151.0792231,0.00010074,2]
[423594017,1780254391000,-11943.64280288,0.00010065,2]
[423594023,1780254404000,1172.0,0.00030137,120]
[423594024,1780254462000,629.86235228,9.977e-05,2]
[423594025,1780254509000,1554.29139142,9.977e-05,2]
[423594026,1780254528000,5000.0,9.975e-05,2]
[423594027,1780254535000,908887.21137969,9.975e-05,2]
[423594028,1780254546000,2000.0,0.00030136,120]
[423594029,1780254588000,500.0,0.0003013,120]
[423594032,1780254631000,-2217.8025301,9.955e-05,2]
[423594034,1780254631000,-563.02382865,9.955e-05,2]
[423594033,1780254631000,-7974.87746471,9.955e-05,2]
[423594037,1780254631000,-26803.56771402,9.955e-05,2]
[423594036,1780254631000,-77396.55459657,9.955e-05,2]
[423594035,1780254631000,-732.37982675,9.955e-05,2]
[423594038,1780254631000,-69069.82726453,9.955e-05,2]
[423594137,1780254637000,-369.95064181,9.955e-05,2]
[423594183,1780254638000,-500.0,0.00013698,2]
[423594180,1780254638000,-6076.05819353,0.00013655,2]
[423594176,1780254638000,-186.1,0.00013127,2]
[423594178,1780254638000,-318.12,0.00013571,2]
[423594177,1780254638000,-2857.9,0.00013167,2]
[423594174,1780254638000,-676.21,0.00012937,2]
[423594175,1780254638000,-2213.02,0.00013008,2]
[423594173,1780254638000,-314.2946502,0.00012896,2]
[423594169,1780254638000,-517.6,0.00011545,2]
[423594170,1780254638000,-200.0,0.00011577,2]
[423594171,1780254638000,-3167.86695058,0.0001217,2]
[423594179,1780254638000,-172.85,0.00013595,2]
[423594181,1780254638000,-500.0,0.00013698,2]
[423594209,1780254638000,-500.0,0.00013698,2]
[423594187,1780254638000,-500.0,0.00013698,2]
[423594189,1780254638000,-500.0,0.00013698,2]
[423594192,1780254638000,-500.0,0.00013698,2]
[423594194,1780254638000,-499.80000009,0.00013698,2]
[423594198,1780254638000,-500.0,0.00013698,2]
[423594196,1780254638000,-500.0,0.00013698,2]
[423594200,1780254638000,-500.0,0.00013698,2]
[423594202,1780254638000,-500.0,0.00013698,2]
[423594172,1780254638000,-156.0,0.0001217,2]
[423594217,1780254638000,-508.35042822,0.00013698,2]
[423594204,1780254638000,-500.0,0.00013698,2]
[423594213,1780254638000,-500.0,0.00013698,2]
[423594207,1780254638000,-500.0,0.00013698,2]
[423594185,1780254638000,-500.0,0.00013698,2]
[423594168,1780254638000,-500.0,0.00011332,2]
[423594157,1780254638000,-400.6163223,0.00010223,2]
[423594167,1780254638000,-215259.13961154,0.00011315,2]
[423594215,1780254638000,-500.0,0.00013698,2]
[423594139,1780254638000,-150.0,9.974e-05,2]
[423594142,1780254638000,-591112.78862031,9.975e-05,2]
[423594138,1780254638000,-2314872.01613286,9.955e-05,2]
[423594141,1780254638000,-300.0,9.974e-05,2]
[423594140,1780254638000,-1151.0,9.974e-05,2]
[423594144,1780254638000,-10000.0,9.975e-05,2]
[423594145,1780254638000,-1036.19426096,9.975e-05,2]
[423594143,1780254638000,-624.37765729,9.975e-05,2]
[423594149,1780254638000,-241.25920034,0.00010074,2]
[423594146,1780254638000,-190.99403283,0.0001,2]
[423594147,1780254638000,-500.0,0.00010074,2]
[423594148,1780254638000,-424.73155641,0.00010074,2]
[423594166,1780254638000,-186.1,0.00011252,2]
[423594151,1780254638000,-500.0,0.00010074,2]
[423594154,1780254638000,-1000.0,0.00010074,2]
[423594153,1780254638000,-500.0,0.00010074,2]
[423594152,1780254638000,-461.32513345,0.00010074,2]
[423594156,1780254638000,-419.90823484,0.00010123,2]
[423594155,1780254638000,-150.0,0.00010074,2]
[423594158,1780254638000,-215.61611719,0.00010339,2]
[423594160,1780254638000,-262.44765209,0.0001059,7]
[423594159,1780254638000,-259.23236154,0.00010526,7]
[423594161,1780254638000,-155.45,0.00010797,2]
[423594163,1780254638000,-250.0,0.0001095,2]
[423594162,1780254638000,-403.71169979,0.000109,2]
[423594164,1780254638000,-255.0,0.00010971,2]
[423594165,1780254638000,-3167.86695059,0.00011099,2]
[423594150,1780254638000,-162.0,0.00010074,2]
[423594211,1780254638000,-500.0,0.00013698,2]
[423594243,1780254638000,-500.0,0.00013698,2]
[423594221,1780254638000,-500.0,0.00013698,2]
[423594282,1780254638000,-500.0,0.00013698,2]
[423594286,1780254638000,-500.0,0.00013698,2]
[423594294,1780254638000,-500.0,0.00013698,2]
[423594288,1780254638000,-500.0,0.00013698,2]
[423594290,1780254638000,-500.0,0.00013698,2]
[423594298,1780254638000,-500.0,0.00013698,2]
[423594296,1780254638000,-500.0,0.00013698,2]
[423594302,1780254638000,-500.0,0.00013698,2]
[423594300,1780254638000,-500.0,0.00013698,2]
[423594304,1780254638000,-500.0,0.00013698,2]
[423594318,1780254638000,-415.17995457,0.00013698,2]
[423594320,1780254638000,-500.0,0.00013698,2]
[423594306,1780254638000,-500.0,0.00013698,2]
[423594284,1780254638000,-500.0,0.00013698,2]
[423594308,1780254638000,-500.0,0.00013698,2]
[423594312,1780254638000,-500.0,0.00013698,2]
[423594314,1780254638000,-500.0,0.00013698,2]
[423594316,1780254638000,-500.0,0.00013698,2]
[423594322,1780254638000,-500.0,0.00013698,2]
[423594324,1780254638000,-422.76127402,0.00013698,2]
[423594328,1780254638000,-500.0,0.00013698,2]
[423594326,1780254638000,-500.0,0.00013698,2]
[423594330,1780254638000,-508.41266581,0.00013698,2]
[423594332,1780254638000,-500.0,0.00013698,2]
[423594336,1780254638000,-500.0,0.00013698,2]
[423594334,1780254638000,-500.0,0.00013698,2]
[423594342,1780254638000,-500.0,0.00013698,2]
[423594219,1780254638000,-500.22762284,0.00013698,2]
[423594310,1780254638000,-500.0,0.00013698,2]
[423594292,1780254638000,-500.0,0.00013698,2]
[423594338,1780254638000,-500.0,0.00013698,2]
[423594279,1780254638000,-500.0,0.00013698,2]
[423594280,1780254638000,-500.0,0.00013698,2]
[423594223,1780254638000,-500.0,0.00013698,2]
[423594227,1780254638000,-500.0,0.00013698,2]
[423594241,1780254638000,-500.0,0.00013698,2]
[423594239,1780254638000,-500.0,0.00013698,2]
[423594340,1780254638000,-500.0,0.00013698,2]
[423594229,1780254638000,-500.0,0.00013698,2]
[423594231,1780254638000,-500.0,0.00013698,2]
[423594235,1780254638000,-500.0,0.00013698,2]
[423594233,1780254638000,-500.0,0.00013698,2]
[423594237,1780254638000,-500.0,0.00013698,2]
[423594251,1780254638000,-500.0,0.00013698,2]
[423594245,1780254638000,-500.0,0.00013698,2]
[423594254,1780254638000,-500.0,0.00013698,2]
[423594225,1780254638000,-500.0,0.00013698,2]
[423594248,1780254638000,-500.0,0.00013698,2]
[423594249,1780254638000,-500.0,0.00013698,2]
[423594276,1780254638000,-500.0,0.00013698,2]
[423594278,1780254638000,-500.0,0.00013698,2]
[423594274,1780254638000,-500.0,0.00013698,2]
[423594268,1780254638000,-500.0,0.00013698,2]
[423594266,1780254638000,-517.95527888,0.00013698,2]
[423594272,1780254638000,-500.0,0.00013698,2]
[423594270,1780254638000,-500.0,0.00013698,2]
[423594256,1780254638000,-500.0,0.00013698,2]
[423594262,1780254638000,-500.0,0.00013698,2]
[423594260,1780254638000,-639.54304457,0.00013698,2]
[423594258,1780254638000,-500.0,0.00013698,2]
[423594264,1780254638000,-500.0,0.00013698,2]
[423594424,1780254639000,-500.0,0.00013698,2]
[423594430,1780254639000,-500.0,0.00013698,2]
[423594426,1780254639000,-500.0,0.00013698,2]
[423594428,1780254639000,-500.0,0.00013698,2]
[423594422,1780254639000,-500.0,0.00013698,2]
[423594414,1780254639000,-263.08171548,0.00013698,2]
[423594408,1780254639000,-500.0,0.00013698,2]
[423594416,1780254639000,-500.0,0.00013698,2]
[423594412,1780254639000,-500.0,0.00013698,2]
[423594418,1780254639000,-500.0,0.00013698,2]
[423594410,1780254639000,-500.0,0.00013698,2]
[423594420,1780254639000,-500.0,0.00013698,2]
[423594443,1780254639000,-500.0,0.00013698,2]
[423594445,1780254639000,-500.0,0.00013698,2]
[423594434,1780254639000,-500.0,0.00013698,2]
[423594437,1780254639000,-500.0,0.00013698,2]
[423594447,1780254639000,-500.0,0.00013698,2]
[423594439,1780254639000,-500.0,0.00013698,2]
[423594432,1780254639000,-500.0,0.00013698,2]
[423594451,1780254639000,-500.0,0.00013698,2]
[423594449,1780254639000,-500.0,0.00013698,2]
[423594455,1780254639000,-500.0,0.00013698,2]
[423594453,1780254639000,-303.83318809,0.00013698,2]
[423594457,1780254639000,-500.0,0.00013698,2]
[423594461,1780254639000,-500.0,0.00013698,2]
[423594406,1780254639000,-500.0,0.00013698,2]
[423594469,1780254639000,-500.0,0.00013698,2]
[423594441,1780254639000,-500.0,0.00013698,2]
[423594404,1780254639000,-500.0,0.00013698,2]
[423594373,1780254639000,-500.0,0.00013698,2]
[423594400,1780254639000,-500.0,0.00013698,2]
[423594459,1780254639000,-500.0,0.00013698,2]
[423594344,1780254639000,-500.0,0.00013698,2]
[423594346,1780254639000,-500.0,0.00013698,2]
[423594350,1780254639000,-500.0,0.00013698,2]
[423594348,1780254639000,-412.1,0.00013698,2]
[423594352,1780254639000,-500.0,0.00013698,2]
[423594354,1780254639000,-500.0,0.00013698,2]
[423594358,1780254639000,-500.0,0.00013698,2]
[423594360,1780254639000,-500.0,0.00013698,2]
[423594365,1780254639000,-500.0,0.00013698,2]
[423594357,1780254639000,-500.0,0.00013698,2]
[423594369,1780254639000,-500.0,0.00013698,2]
[423594363,1780254639000,-500.0,0.00013698,2]
[423594367,1780254639000,-500.0,0.00013698,2]
[423594371,1780254639000,-500.0,0.00013698,2]
[423594375,1780254639000,-500.0,0.00013698,2]
[423594377,1780254639000,-500.0,0.00013698,2]
[423594379,1780254639000,-500.0,0.00013698,2]
[423594381,1780254639000,-500.0,0.00013698,2]
[423594389,1780254639000,-500.0,0.00013698,2]
[423594391,1780254639000,-500.0,0.00013698,2]
[423594383,1780254639000,-500.0,0.00013698,2]
[423594395,1780254639000,-500.0,0.00013698,2]
[423594385,1780254639000,-500.0,0.00013698,2]
[423594393,1780254639000,-500.0,0.00013698,2]
[423594387,1780254639000,-500.0,0.00013698,2]
[423594397,1780254639000,-500.0,0.00013698,2]
[423594402,1780254639000,-500.0,0.00013698,2]
[423594471,1780254639000,-500.0,0.00013698,2]
[423594500,1780254639000,-500.0,0.00013698,2]
[423594463,1780254639000,-500.0,0.00013698,2]
[423594550,1780254639000,-158.0,0.00013698,2]
[423594536,1780254639000,-583.54,0.00013698,2]
[423594548,1780254639000,-156.0,0.00013698,2]
[423594538,1780254639000,-583.54,0.00013698,2]
[423594540,1780254639000,-583.54,0.00013698,2]
[423594542,1780254639000,-583.54,0.00013698,2]
[423594546,1780254639000,-502.19295882,0.00013698,2]
[423594544,1780254639000,-500.0,0.00013698,2]
[423594552,1780254639000,-500.0,0.00013698,2]
[423594554,1780254639000,-500.0,0.00013698,2]
[423594557,1780254639000,-500.0,0.00013698,2]
[423594560,1780254639000,-365.01560358,0.00013698,2]
[423594571,1780254639000,-500.0,0.00013699,2]
[423594467,1780254639000,-500.0,0.00013698,2]
[423594573,1780254639000,-500.0,0.00013699,2]
[423594564,1780254639000,-166.66,0.00013699,2]
[423594569,1780254639000,-500.0,0.00013699,2]
[423594566,1780254639000,-200.0,0.00013699,2]
[423594577,1780254639000,-500.0,0.00013699,2]
[423594584,1780254639000,-500.0,0.00013699,2]
[423594580,1780254639000,-500.0,0.00013699,2]
[423594575,1780254639000,-500.0,0.00013699,2]
[423594582,1780254639000,-500.0,0.00013699,2]
[423594586,1780254639000,-500.0,0.00013699,2]
[423594588,1780254639000,-500.0,0.00013699,2]
[423594592,1780254639000,-500.0,0.00013699,2]
[423594590,1780254639000,-500.0,0.00013699,2]
[423594534,1780254639000,-583.54,0.00013698,2]
[423594532,1780254639000,-583.54,0.00013698,2]
[423594562,1780254639000,-500.0,0.00013698,2]
[423594528,1780254639000,-583.54,0.00013698,2]
[423594530,1780254639000,-583.54,0.00013698,2]
[423594473,1780254639000,-494.05405209,0.00013698,2]
[423594475,1780254639000,-500.0,0.00013698,2]
[423594477,1780254639000,-500.0,0.00013698,2]
[423594481,1780254639000,-500.0,0.00013698,2]
[423594479,1780254639000,-500.0,0.00013698,2]
[423594483,1780254639000,-373.249,0.00013698,2]
[423594465,1780254639000,-321.46293792,0.00013698,2]
[423594487,1780254639000,-305.65687157,0.00013698,2]
[423594496,1780254639000,-500.0,0.00013698,2]
[423594498,1780254639000,-500.0,0.00013698,2]
[423594489,1780254639000,-500.0,0.00013698,2]
[423594494,1780254639000,-500.0,0.00013698,2]
[423594485,1780254639000,-544.57270483,0.00013698,2]
[423594502,1780254639000,-500.0,0.00013698,2]
[423594526,1780254639000,-583.54,0.00013698,2]
[423594492,1780254639000,-500.0,0.00013698,2]
[423594525,1780254639000,-583.54,0.00013698,2]
[423594518,1780254639000,-583.54,0.00013698,2]
[423594522,1780254639000,-583.54,0.00013698,2]
[423594520,1780254639000,-583.54,0.00013698,2]
[423594516,1780254639000,-583.54,0.00013698,2]
[423594512,1780254639000,-583.54,0.00013698,2]
[423594510,1780254639000,-583.54,0.00013698,2]
[423594506,1780254639000,-500.0,0.00013698,2]
[423594504,1780254639000,-500.0,0.00013698,2]
[423594508,1780254639000,-588.55300533,0.00013698,2]
[423594514,1780254639000,-583.54,0.00013698,2]
[423594641,1780254640000,-403.71169975,0.0001415,2]
[423594637,1780254640000,-1865.36,0.00014025,2]
[423594635,1780254640000,-250.0,0.00014,2]
[423594650,1780254640000,-3167.86695058,0.00014365,2]
[423594648,1780254640000,-166.66,0.0001431,2]
[423594639,1780254640000,-166.66,0.00014106,2]
[423594659,1780254640000,-2000.0,0.00014656,2]
[423594646,1780254640000,-818.49,0.00014239,2]
[423594657,1780254640000,-166.66,0.00014514,2]
[423594653,1780254640000,-1865.36,0.00014376,2]
[423594655,1780254640000,-166.66,0.00014446,2]
[423594661,1780254640000,-166.66,0.00014718,2]
[423594663,1780254640000,-1865.36,0.00014727,2]
[423594643,1780254640000,-1898.41,0.00014239,2]
[423594629,1780254640000,-426.48028601,0.00013972,2]
[423594601,1780254640000,-500.0,0.00013699,2]
[423594627,1780254640000,-7588.02,0.00013962,2]
[423594672,1780254640000,-1865.36,0.00015077,2]
[423594597,1780254640000,-500.0,0.00013699,2]
[423594594,1780254640000,-500.0,0.00013699,2]
[423594599,1780254640000,-500.0,0.00013699,2]
[423594603,1780254640000,-500.0,0.00013699,2]
[423594608,1780254640000,-481.3814577,0.00013699,2]
[423594605,1780254640000,-500.0,0.00013699,2]
[423594610,1780254640000,-500.0,0.00013699,2]
[423594612,1780254640000,-500.0,0.00013699,2]
[423594614,1780254640000,-500.0,0.00013699,2]
[423594621,1780254640000,-508.90663836,0.00013874,2]
[423594625,1780254640000,-166.66,0.00013902,2]
[423594618,1780254640000,-695.76,0.000137,2]
[423594616,1780254640000,-500.0,0.00013699,2]
[423594623,1780254640000,-1852.42,0.0001389,2]
[423594631,1780254640000,-14090.15774791,0.0001399,2]
[423594665,1780254640000,-173.49472325,0.00014846,2]
[423594633,1780254640000,-4277.13,0.00013998,2]
[423594670,1780254640000,-186.1,0.00015002,2]
[423594719,1780254640000,-790.99941994,0.000184,2]
[423594722,1780254640000,-790.99941994,0.000185,2]
[423594726,1780254640000,-2833.58,0.00018533,2]
[423594728,1780254640000,-9999.99,0.00018533,2]
[423594730,1780254640000,-9999.99,0.00018533,2]
[423594732,1780254640000,-299.99,0.00018533,4]
[423594724,1780254640000,-150.99,0.00018533,2]
[423594734,1780254640000,-999.99,0.00018533,2]
[423594740,1780254640000,-7100.6837604,0.00019,2]
[423594736,1780254640000,-790.99941994,0.000187,2]
[423594744,1780254640000,-1378.4826948,0.00019,2]